fUST/lending_fUST_20250623
["ID","MTS","AMOUNT","RATE_DAILY","PERIOD"]
[367178468,1750692825513,-151.0,0.00025,7]
[367178469,1750692825578,-187.711762,0.00025,7]
[367178470,1750692825640,-151.0,0.00025,7]
[367178471,1750692825702,-1117.504995,0.00025,7]
[367178472,1750692825772,-151.0,0.00025,7]
[367178473,1750692825835,-1117.504994,0.00025,7]
[367178474,1750692825899,-1000.0,0.00025,5]
[367178475,1750692825959,-2622.63,0.00025,7]
[367178476,1750692826021,-200.0,0.00025068,120]
[367178477,1750692826084,-1275.49,0.00025099,4]
[367178478,1750692826144,-500.0,0.000251,3]
[367178479,1750692826208,-1275.49,0.00025199,5]
[367178480,1750692826272,-500.0,0.000252,3]
[367178481,1750692826343,-200.0,0.00025205,120]
[367178482,1750692826416,-200.0,0.00025239,120]
[367178483,1750692826493,-500.0,0.000253,3]
[367178484,1750692826559,-320.0,0.00025342,120]
[367178485,1750692826626,-1275.49,0.00025399,5]
[367178486,1750692826692,-500.0,0.000254,3]
[367178487,1750692826755,-1275.49,0.00025499,7]
[367178488,1750692826818,-500.0,0.000255,3]
[367178489,1750692826885,-1275.49,0.00025599,7]
[367178490,1750692826949,-500.0,0.000256,3]
[367178491,1750692827015,-200.0,0.00025676,120]
[367178492,1750692827082,-1275.49,0.00025699,7]
[367178493,1750692827143,-500.0,0.000257,3]
[367178494,1750692827205,-216.08641367,0.00025726,3]
[367178495,1750692827270,-200.0,0.00025733,120]
[367178496,1750692827334,-1275.49,0.00025799,3]
[367178497,1750692827397,-500.0,0.000258,3]
[367178498,1750692827460,-500.0,0.000258,3]
[367178499,1750692827525,-4495.84062245,0.00025849,7]
[367178500,1750692827613,-200.0,0.0002585,120]
[367178501,1750692827681,-200.0,0.00025869,120]
[367178502,1750692827743,-1275.49,0.00025899,7]
[367178503,1750692827805,-500.0,0.000259,3]
[367178504,1750692827865,-24268.66605867,0.00025944,7]
[367178505,1750692827926,-29043.87519125,0.00025975,7]
[367178506,1750692827989,-1275.49,0.00025999,6]
[367178507,1750692828049,-500.0,0.00026,3]
[367178508,1750692828110,-6373.19,0.00026,7]
[367178509,1750692828169,-1656.346964,0.00026,30]
[367178510,1750692828228,-200.0,0.0002606,15]
[367178511,1750692828287,-1275.49,0.00026099,4]
[367178512,1750692828354,-2622.63,0.000261,7]
[367178513,1750692828418,-153.0,0.00026174,30]
[367178514,1750692828481,-153.0,0.00026174,30]
[367178515,1750692828546,-153.0,0.00026174,30]
[367178516,1750692828611,-153.0,0.00026174,30]
[367178517,1750692828676,-153.0,0.00026174,30]
[367178518,1750692828737,-153.0,0.00026174,30]
[367178519,1750692828796,-153.0,0.00026174,30]
[367178520,1750692828860,-153.0,0.00026174,30]
[367178521,1750692828921,-153.0,0.00026174,30]
[367178522,1750692828983,-153.0,0.00026174,30]
[367178523,1750692829047,-153.0,0.00026174,30]
[367178524,1750692829110,-153.0,0.00026174,30]
[367178525,1750692829172,-153.0,0.00026174,30]
[367178526,1750692829235,-153.0,0.00026174,30]
[367178527,1750692829297,-153.0,0.00026174,30]
[367178528,1750692829364,-153.0,0.00026174,30]
[367178529,1750692829429,-153.0,0.00026174,30]
[367178530,1750692829493,-1275.49,0.00026199,6]
[367178531,1750692829556,-200.0,0.00026204,120]
[367178532,1750692829627,-1275.49,0.00026299,5]
[367178533,1750692829692,-223.47,0.0002637,5]
[367178534,1750692829759,-1275.49,0.00026399,5]
[367178535,1750692829824,-200.0,0.00026441,120]
[367178536,1750692829886,-1275.49,0.00026499,3]
[367178537,1750692829961,-1275.49,0.00026599,7]
[367178538,1750692830030,-1729.76,0.000266,31]
[367178539,1750692830096,-1729.76,0.000266,31]
[367178540,1750692830168,-1729.76,0.000266,31]
[367178541,1750692830247,-1729.76,0.000266,31]
[367178542,1750692830316,-1729.76,0.000266,31]
[367178543,1750692830391,-1729.76,0.000266,31]
[367178544,1750692830463,-1729.76,0.000266,31]
[367178545,1750692830537,-1729.76,0.000266,31]
[367178546,1750692830609,-1729.76,0.000266,31]
[367178547,1750692830682,-1729.76,0.000266,31]
[367178548,1750692830746,-1729.76,0.000266,31]
[367178549,1750692830811,-1729.76,0.000266,31]
[367178550,1750692830878,-200.0,0.00026602,120]
[367178551,1750692831098,-200.0,0.00026635,120]
[367178552,1750692831165,-1275.49,0.00026699,6]
[367178553,1750692831225,-200.0,0.00026787,120]
[367178554,1750692831287,-1275.49,0.00026799,3]
[367178555,1750692831351,-200.0,0.00026979,120]
[367178556,1750692831416,-1275.49,0.00026999,5]
[367178557,1750692831488,-1900.0,0.00027,30]
[367178558,1750692831552,-1900.0,0.00027,30]
[367178559,1750692831616,-1900.0,0.00027,30]
[367178560,1750692831676,-614.04420067,0.00027,30]
[367178561,1750692831736,-1900.0,0.00027,30]
[367178562,1750692831801,-500.0,0.00027,30]
[367178563,1750692831862,-500.0,0.00027,30]
[367178564,1750692831922,-1900.0,0.00027,30]
[367178565,1750692831983,-500.0,0.00027,30]
[367178566,1750692832044,-1900.0,0.00027,30]
[367178567,1750692832105,-500.0,0.00027,30]
[367178568,1750692832168,-1900.0,0.00027,30]
[367178569,1750692832228,-500.0,0.00027,30]
[367178570,1750692832288,-1900.0,0.00027,30]
[367178571,1750692832351,-500.0,0.00027,30]
[367178572,1750692832415,-1900.0,0.00027,30]
[367178573,1750692832482,-1900.0,0.00027,30]
[367178574,1750692832542,-500.0,0.00027,30]
[367178575,1750692832604,-1900.0,0.00027,30]
[367178576,1750692832664,-500.0,0.00027,30]
[367178577,1750692832724,-500.59879245,0.00027,30]
[367178578,1750692832789,-1900.0,0.00027,30]
[367178579,1750692832845,-500.0,0.00027,30]
[367178580,1750692832908,-1900.0,0.00027,30]
[367178581,1750692832966,-509.71080612,0.00027,30]
[367178582,1750692833026,-2703.36422122,0.00027,30]
[367178583,1750692833089,-500.0,0.00027,30]
[367178584,1750692833150,-500.0,0.00027,30]
[367178585,1750692833212,-500.0,0.00027,30]
[367178586,1750692833279,-500.0,0.00027,30]
[367178587,1750692833339,-500.0,0.00027,30]
[367178588,1750692833399,-500.0,0.00027,30]
[367178589,1750692833458,-500.0,0.00027,30]
[367178590,1750692833522,-500.0,0.00027,30]
[367178591,1750692833589,-500.0,0.00027,30]
[367178592,1750692833652,-500.0,0.00027,30]
[367178593,1750692833714,-500.0,0.00027,30]
[367178594,1750692833777,-500.0,0.00027,30]
[367178595,1750692833845,-500.0,0.00027,30]
[367178596,1750692833904,-582.13383437,0.00027,30]
[367178597,1750692833966,-500.0,0.00027,30]
[367178598,1750692834024,-500.0,0.00027,30]
[367178599,1750692834087,-652.95134883,0.00027,30]
[367178600,1750692834148,-1112.43451,0.00027,120]
[367178601,1750692834208,-160.0,0.00027,10]
[367178602,1750692834268,-500.0,0.00027,30]
[367178603,1750692834326,-500.0,0.00027,30]
[367178604,1750692834389,-500.0,0.00027,30]
[367178605,1750692834449,-500.0,0.00027,30]
[367178606,1750692834521,-500.0,0.00027,30]
[367178607,1750692834582,-500.0,0.00027,30]
[367178608,1750692834638,-500.0,0.00027,30]
[367178609,1750692834696,-500.0,0.00027,30]
[367178610,1750692834752,-500.0,0.00027,30]
[367178611,1750692834810,-500.0,0.00027,30]
[367178612,1750692834867,-500.0,0.00027,30]
[367178613,1750692834928,-674.96332681,0.00027,30]
[367178614,1750692834986,-500.0,0.00027,30]
[367178615,1750692835048,-230.18214666,0.00027,10]
[367178616,1750692835109,-230.18214666,0.00027,30]
[367178617,1750692835171,-524.09497732,0.00027,10]
[367178618,1750692835231,-524.09497732,0.00027,30]
[367178619,1750692835294,-160.0,0.00027,10]
[367178620,1750692835356,-160.0,0.00027,30]
[367178621,1750692835413,-836.70095952,0.00027,10]
[367178622,1750692835471,-836.70095952,0.00027,30]
[367178623,1750692835527,-846.53928378,0.00027,10]
[367178624,1750692835584,-213.63163053,0.00027,10]
[367178625,1750692835642,-213.63163053,0.00027,30]
[367178626,1750692835702,-425.08510397,0.00027,10]
[367178627,1750692835765,-425.08510397,0.00027,30]
[367178628,1750692835826,-160.0,0.00027,10]
[367178629,1750692835883,-160.0,0.00027,30]
[367178630,1750692835939,-1275.49,0.00027099,5]
[367178631,1750692835994,-6373.19,0.000271,7]
[367178632,1750692836049,-1275.49,0.00027199,3]
[367178633,1750692836104,-2622.63,0.000272,7]
[367178634,1750692836162,-1275.49,0.00027299,5]
[367178635,1750692836217,-151.0,0.00027397,7]
[367178636,1750692836273,-151.0,0.00027397,7]
[367178637,1750692836332,-151.0,0.00027397,7]
[367178638,1750692836392,-151.0,0.00027397,7]
[367178639,1750692836457,-151.0,0.00027397,7]
[367178640,1750692836522,-151.0,0.00027397,7]
[367178641,1750692836577,-151.0,0.00027397,7]
[367178642,1750692836634,-151.0,0.00027397,7]
[367178643,1750692836691,-151.0,0.00027397,7]
[367178644,1750692836748,-151.0,0.00027397,7]
[367178645,1750692836805,-151.0,0.00027397,7]
[367178646,1750692836863,-151.0,0.00027397,7]
[367178647,1750692836918,-248.721447,0.00027397,7]
[367178648,1750692836975,-226.0852338,0.00027397,120]
[367178649,1750692837033,-500.0,0.00027397,5]
[367178650,1750692837092,-1275.49,0.00027399,12]
[367178651,1750692837148,-206.0,0.000274,30]
[367178652,1750692837206,-4000.0,0.00027408,5]
[367178653,1750692837263,-4000.0,0.00027408,5]
[367178654,1750692837320,-4800.0,0.00027408,5]
[367178655,1750692837523,-1275.49,0.00027499,12]
[367178656,1750692837597,-822.76460168,0.000275,30]
[367178657,1750692837654,-1275.49,0.00027599,23]
[367178658,1750692837712,-1900.0,0.00027658,30]
[367178659,1750692837768,-1900.0,0.00027658,30]
[367178660,1750692837825,-1900.0,0.00027658,30]
[367178661,1750692837879,-1900.0,0.00027658,30]
[367178662,1750692837933,-1900.0,0.00027658,30]
[367178663,1750692837988,-1900.0,0.00027658,30]
[367178664,1750692838043,-1900.0,0.00027658,30]
[367178665,1750692838096,-190.0,0.00027658,30]
[367178666,1750692838147,-1900.0,0.00027658,30]
[367178667,1750692838202,-1900.0,0.00027658,30]
[367178668,1750692838254,-500.0,0.00027658,30]
[367178669,1750692838307,-1900.0,0.00027658,30]
[367178670,1750692838366,-1900.0,0.00027658,30]
[367178671,1750692838422,-500.0,0.00027658,30]
[367178672,1750692838480,-1900.0,0.00027658,30]
[367178673,1750692838537,-500.0,0.00027658,30]
[367178674,1750692838597,-1900.0,0.00027658,30]
[367178675,1750692838653,-500.0,0.00027658,30]
[367178676,1750692838710,-1900.0,0.00027658,30]
[367178677,1750692838768,-500.0,0.00027658,30]
[367178678,1750692838826,-1900.0,0.00027658,30]
[367178679,1750692838885,-500.0,0.00027658,30]
[367178680,1750692838942,-507.77545254,0.00027658,30]
[367178681,1750692839004,-500.0,0.00027658,30]
[367178682,1750692839064,-500.0,0.00027658,30]
[367178683,1750692839130,-500.0,0.00027658,30]
[367178684,1750692839193,-500.0,0.00027658,30]
[367178685,1750692839261,-500.0,0.00027658,30]
[367178686,1750692839338,-500.0,0.00027658,30]
[367178687,1750692839406,-500.0,0.00027658,30]
[367178688,1750692839478,-500.0,0.00027658,30]
[367178689,1750692839540,-500.0,0.00027658,30]
[367178690,1750692839605,-500.0,0.00027658,30]
[367178691,1750692839665,-293.85068442,0.00027658,30]
[367178692,1750692839725,-500.0,0.00027658,30]
[367178693,1750692839788,-194.35501432,0.00027658,30]
[367178694,1750692839851,-500.0,0.00027658,30]
[367178695,1750692839916,-500.0,0.00027658,30]
[367178696,1750692839985,-500.0,0.00027658,30]
[367178697,1750692840052,-500.0,0.00027658,30]
[367178698,1750692840118,-500.0,0.00027658,30]
[367178699,1750692840187,-500.0,0.00027658,30]
[367178700,1750692840248,-500.0,0.00027658,30]
[367178701,1750692840310,-500.0,0.00027658,30]
[367178702,1750692840375,-500.0,0.00027658,30]
[367178703,1750692840440,-500.0,0.00027658,30]
[367178704,1750692840504,-500.0,0.00027658,30]
[367178705,1750692840569,-500.0,0.00027658,30]
[367178706,1750692840632,-500.0,0.00027658,30]
[367178707,1750692840697,-500.0,0.00027658,30]
[367178708,1750692840759,-500.0,0.00027658,30]
[367178709,1750692840817,-500.0,0.00027658,30]
[367178710,1750692840875,-500.0,0.00027658,30]
[367178711,1750692840933,-500.0,0.00027658,30]
[367178712,1750692840991,-500.0,0.00027658,30]
[367178713,1750692841049,-500.0,0.00027658,30]
[367178714,1750692841106,-500.0,0.00027658,30]
[367178715,1750692841164,-500.0,0.00027658,30]
[367178716,1750692841221,-500.0,0.00027658,30]
[367178717,1750692841280,-500.0,0.00027658,30]
[367178718,1750692841339,-500.0,0.00027658,30]
[367178719,1750692841401,-500.0,0.00027658,30]
[367178720,1750692841459,-500.0,0.00027658,30]
[367178721,1750692841524,-500.0,0.00027658,30]
[367178722,1750692841585,-500.0,0.00027658,30]
[367178723,1750692841640,-500.0,0.00027658,30]
[367178724,1750692841699,-167.14432938,0.00027658,30]
[367178725,1750692841772,-200.0,0.0002766,19]
[367178726,1750692841833,-1275.49,0.00027699,11]
[367178727,1750692841894,-4806.59861525,0.00027704,5]
[367178728,1750692841956,-4784.36875548,0.00027779,5]
[367178729,1750693115716,150.0,0.00021492,30]
[367178730,1750693116181,150.0,0.00023445,30]
[367178731,1750693155799,-300.0,0.00021506,2]
[367178732,1750693155820,-19728.68198138,0.00021507,2]
[367178733,1750693155843,-168.0,0.00021534,2]
[367178734,1750693155865,-160.0,0.00021606,2]
[367178735,1750693155888,-1200.0,0.00021607,2]
[367178736,1750693155909,-267.31801862,0.00021607,2]
[367178738,1750693270339,203.732434,0.00024,30]
[367178739,1750693278764,3392.7176167,0.00018384,2]
[367178740,1750693302572,349.66207465,0.00024,30]
[367178741,1750693335288,150.0,0.00021616,30]
[367178742,1750693335654,150.0,0.00023581,30]
[367178745,1750693413159,150.0,0.00021692,30]
[367178747,1750693413573,150.0,0.00023664,30]
[367178749,1750693487148,150.0,0.00021561,30]
[367178750,1750693488082,150.0,0.00023521,30]
[367178751,1750693524519,3746.71,0.00024,30]
[367178755,1750693570693,150.0,0.00022193,30]
[367178756,1750693577115,150.0,0.00024,30]
[367178757,1750693631103,-185.01075822,0.00020948,2]
[367178758,1750693631125,-830.25502394,0.00021513,2]
[367178759,1750693631146,-300.0,0.00021595,2]
[367178760,1750693631168,-11011.03698383,0.00021596,2]
[367178761,1750693633110,-1779.748768,0.00021596,2]
[367178762,1750693645369,150.0,0.00021942,30]
[367178763,1750693645796,150.0,0.00023937,30]
[367178764,1750693652079,-1301.44752447,0.00021596,2]
[367178765,1750693719044,150.0,0.00021531,30]
[367178766,1750693719461,150.0,0.00023488,30]
[367178775,1750693794073,150.0,0.00021943,30]
[367178776,1750693810686,3746.7,0.0001911,2]
[367178846,1750693832756,-192.517962,0.00020665,2]
[367178847,1750693832767,-361.30069373,0.00021497,2]
[367178848,1750693832781,-365.1724522,0.00021497,2]
[367178849,1750693832790,-207.4,0.00021587,2]
[367178850,1750693832800,-300.0,0.00021595,2]
[367178851,1750693832810,-1200.0,0.00021595,2]
[367178852,1750693832823,-300.0,0.00021595,2]
[367178854,1750693832833,-17260.96376264,0.00021596,2]
[367178856,1750693832845,-2252.5480884,0.00021596,2]
[367178863,1750693832909,-5.05063283,0.00021596,2]
[367178883,1750693838877,-1180.33799523,0.00021596,2]
[367178884,1750693838890,-1765.92012793,0.00021596,2]
[367178885,1750693838959,-3000.0,0.00021596,2]
[367178966,1750693843824,-10442.94611667,0.00021596,2]
[367178967,1750693843834,-300.0,0.00021597,2]
[367178968,1750693843844,-722.43065466,0.00021607,2]
[367178969,1750693843853,-722.43065466,0.00021607,2]
[367178971,1750693843862,-160.0,0.00021612,2]
[367178974,1750693843872,-1926.2099934,0.00021614,2]
[367178976,1750693843881,-168.0,0.00021661,2]
[367178978,1750693843891,-156.9977156,0.00021708,2]
[367178980,1750693843904,-500.0,0.00021708,2]
[367178981,1750693843914,-500.0,0.00021708,2]
[367178982,1750693843923,-500.0,0.00021708,2]
[367178983,1750693843933,-500.0,0.00021708,2]
[367178984,1750693843943,-478.02165027,0.00021708,2]
[367178987,1750693846981,-21.97834973,0.00021708,2]
[367178988,1750693846991,-175.77151338,0.00021708,2]
[367178989,1750693847194,-324.22848662,0.00021708,2]
[367178990,1750693847203,-500.0,0.00021708,2]
[367178991,1750693847212,-240.20817484,0.00021708,2]
[367178992,1750693866097,150.0,0.00021964,30]
[367178993,1750693945672,161.569249,0.00013699,2]
[367178994,1750693947850,-161.0,0.00019608,2]
[367179000,1750694039022,-150.0,0.00019608,2]
[367179001,1750694039049,-300.0,0.00020952,2]
[367179002,1750694039073,-8410.0,0.00020953,2]
[367179003,1750694042340,-160.0,0.00019412,2]
[367179004,1750694112999,-2000.0,0.00019412,2]
[367179005,1750694115176,-222.842108,0.00019412,2]
[367179006,1750694160644,-150.0,0.00019412,2]
[367179007,1750694181656,-10.0,0.00019412,2]
[367179008,1750694181681,-247.68086282,0.00019412,2]
[367179009,1750694181703,-270.0,0.00020952,2]
[367179010,1750694181725,-300.0,0.00020952,2]
[367179011,1750694181749,-172.31913718,0.00020952,2]
[367179013,1750694355637,-500.0,0.00022147,7]
[367179014,1750694355735,-218.6,0.00022692,5]
[367179015,1750694355804,-500.0,0.00022695,8]
[367179016,1750694355875,-151.0,0.00022773,7]
[367179017,1750694355943,-151.0,0.00022773,7]
[367179018,1750694356013,-1311.31,0.000228,7]
[367179019,1750694356080,-151.0,0.000228,8]
[367179020,1750694356147,-218.6,0.00022815,5]
[367179021,1750694356217,-151.0,0.000229,5]
[367179022,1750694356282,-218.6,0.00022939,5]
[367179023,1750694356348,-173.023809,0.00022965,7]
[367179024,1750694356411,-151.0,0.00023,5]
[367179025,1750694356475,-2000.0,0.00023,14]
[367179026,1750694356543,-218.6,0.00023063,5]
[367179027,1750694356616,-151.0,0.000231,7]
[367179028,1750694356683,-218.6,0.00023187,5]
[367179029,1750694356756,-151.0,0.000232,6]
[367179030,1750694356833,-500.0,0.00023243,9]
[367179031,1750694356904,-151.0,0.00023285,7]
[367179032,1750694356974,-151.0,0.00023285,7]
[367179033,1750694357042,-151.0,0.00023285,7]
[367179034,1750694357112,-151.0,0.00023285,7]
[367179035,1750694357179,-3823.92,0.000233,7]
[367179036,1750694357249,-151.0,0.000233,7]
[367179037,1750694357318,-218.6,0.0002331,5]
[367179038,1750694357386,-200.0,0.0002332,7]
[367179039,1750694357461,-218.6,0.00023434,5]
[367179040,1750694357545,-151.0,0.000235,10]
[367179041,1750694357616,-151.0,0.000236,7]
[367179042,1750694357682,-151.0,0.000236,5]
[367179043,1750694357750,-151.0,0.000236,6]
[367179044,1750694357822,-151.0,0.0002366,7]
[367179045,1750694357890,-151.0,0.0002366,7]
[367179046,1750694357955,-151.0,0.0002366,7]
[367179047,1750694358020,-151.0,0.0002366,7]
[367179048,1750694358094,-151.0,0.000237,7]
[367179049,1750694358164,-151.0,0.000237,9]
[367179050,1750694358232,-151.0,0.000237,10]
[367179051,1750694358306,-299.77168183,0.0002379,10]
[367179052,1750694358371,-151.0,0.000238,5]
[367179053,1750694358440,-151.0,0.000238,7]
[367179054,1750694358506,-151.0,0.000238,9]
[367179055,1750694358584,-162.280721,0.000239,7]
[367179056,1750694358651,-151.0,0.000239,7]
[367179057,1750694358719,-151.0,0.000239,7]
[367179058,1750694358788,-151.0,0.000239,7]
[367179059,1750694358858,-151.0,0.000239,7]
[367179060,1750694358927,-155.719176,0.000239,7]
[367179061,1750694358996,-151.0,0.000239,7]
[367179062,1750694359065,-151.0,0.000239,7]
[367179063,1750694359140,-151.0,0.000239,7]
[367179064,1750694359226,-350.598084,0.000239,7]
[367179065,1750694359309,-350.598084,0.000239,7]
[367179066,1750694359381,-151.0,0.000239,7]
[367179067,1750694359445,-151.0,0.000239,7]
[367179068,1750694359514,-151.0,0.000239,7]
[367179069,1750694359587,-151.0,0.000239,7]
[367179070,1750694359656,-151.0,0.00023956,7]
[367179071,1750694359728,-151.0,0.00023956,7]
[367179072,1750694359799,-151.0,0.00023956,7]
[367179073,1750694359871,-151.0,0.00023956,7]
[367179074,1750694359942,-151.0,0.00023973,7]
[367179075,1750694360015,-151.0,0.00023973,7]
[367179076,1750694360085,-153.504504,0.00023973,7]
[367179077,1750694360157,-182.83099,0.00023973,7]
[367179078,1750694360229,-265.892581,0.00023973,7]
[367179079,1750694360302,-151.0,0.00023973,7]
[367179080,1750694360373,-151.0,0.00023973,7]
[367179081,1750694360447,-151.0,0.00023973,7]
[367179082,1750694360522,-152.118465,0.00023973,7]
[367179083,1750694360593,-151.0,0.00023973,7]
[367179084,1750694360665,-151.0,0.00023973,7]
[367179085,1750694360734,-350.598084,0.00023973,7]
[367179086,1750694360805,-350.598084,0.00023973,7]
[367179087,1750694361080,-151.0,0.0002398,7]
[367179088,1750694361157,-219.159322,0.0002398,7]
[367179089,1750694361224,-175.981928,0.0002398,7]
[367179090,1750694361295,-175.981928,0.0002398,7]
[367179091,1750694361361,-151.578217,0.0002398,7]
[367179092,1750694361427,-151.0,0.0002398,7]
[367179093,1750694361492,-462.109366,0.0002398,7]
[367179094,1750694361562,-462.109366,0.0002398,7]
[367179095,1750694361629,-151.0,0.0002398,7]
[367179096,1750694361698,-151.0,0.0002398,7]
[367179097,1750694361768,-151.0,0.0002398,7]
[367179098,1750694361833,-151.0,0.0002398,7]
[367179099,1750694361898,-164.96795,0.0002398,7]
[367179100,1750694361963,-164.96795,0.0002398,7]
[367179101,1750694362027,-151.0,0.00024,7]
[367179102,1750694362089,-151.0,0.00024,7]
[367179103,1750694362152,-400.303122,0.00024,7]
[367179104,1750694362218,-400.303122,0.00024,7]
[367179105,1750694362280,-151.0,0.00024,7]
[367179106,1750694362346,-186.563393,0.00024,7]
[367179107,1750694362410,-186.563393,0.00024,7]
[367179108,1750694362476,-151.0,0.00024,7]
[367179109,1750694362542,-151.0,0.00024,7]
[367179110,1750694362610,-151.0,0.00024,7]
[367179111,1750694362678,-176.173989,0.00024,7]
[367179112,1750694362745,-176.173989,0.00024,7]
[367179113,1750694362814,-151.0,0.00024,7]
[367179114,1750694362895,-151.0,0.00024,7]
[367179115,1750694362992,-151.0,0.00024,7]
[367179116,1750694363086,-151.0,0.00024,7]
[367179117,1750694363181,-153.604457,0.00024,7]
[367179118,1750694363268,-153.604457,0.00024,7]
[367179119,1750694363335,-205.184865,0.00024,7]
[367179120,1750694363400,-151.0,0.00024,7]
[367179121,1750694363466,-186.636962,0.00024,7]
[367179122,1750694363535,-186.636962,0.00024,7]
[367179123,1750694363602,-195.596995,0.00024,7]
[367179124,1750694363667,-195.596995,0.00024,7]
[367179125,1750694363731,-334.634876,0.00024,7]
[367179126,1750694363807,-151.0,0.00024,7]
[367179127,1750694363873,-944.273856,0.00024,7]
[367179128,1750694363936,-944.273856,0.00024,7]
[367179129,1750694364004,-458.136486,0.00024,7]
[367179130,1750694364068,-151.0,0.00024,7]
[367179131,1750694364133,-500.0,0.00024,9]
[367179132,1750694364196,-151.0,0.00024,7]
[367179133,1750694364265,-500.0,0.00024,9]
[367179134,1750694364330,-160.0,0.00024,7]
[367179135,1750694364398,-151.0,0.00024,7]
[367179136,1750694364465,-184.157617,0.00024,7]
[367179137,1750694364534,-151.0,0.00024,7]
[367179138,1750694364604,-230.18214666,0.00024,7]
[367179139,1750694364674,-846.53928378,0.00024,7]
[367179140,1750694364740,-160.0,0.00024,7]
[367179141,1750694364807,-836.70095952,0.00024,7]
[367179142,1750694364876,-213.63163053,0.00024,7]
[367179143,1750694364943,-425.08510397,0.00024,7]
[367179144,1750694365014,-160.0,0.00024,7]
[367179145,1750694365084,-151.0,0.0002408,7]
[367179146,1750694365156,-151.0,0.0002408,7]
[367179147,1750694365224,-151.0,0.0002408,7]
[367179148,1750694365296,-151.0,0.00024199,7]
[367179149,1750694365362,-151.0,0.000242,7]
[367179150,1750694365432,-153.192092,0.000242,7]
[367179151,1750694365503,-151.0,0.0002422,7]
[367179152,1750694365573,-151.0,0.0002422,7]
[367179153,1750694365649,-350.598084,0.0002422,7]
[367179154,1750694365718,-350.598084,0.0002422,7]
[367179155,1750694365787,-175.981928,0.00024235,7]
[367179156,1750694365854,-175.981928,0.00024235,7]
[367179157,1750694365918,-151.0,0.00024235,7]
[367179158,1750694365991,-462.109366,0.00024235,7]
[367179159,1750694366054,-462.109366,0.00024235,7]
[367179160,1750694366120,-151.0,0.00024235,7]
[367179161,1750694366183,-151.0,0.00024235,7]
[367179162,1750694366248,-151.0,0.00024235,7]
[367179163,1750694366320,-151.0,0.00024235,7]
[367179164,1750694366388,-164.96795,0.00024235,7]
[367179165,1750694366458,-164.96795,0.00024235,7]
[367179166,1750694366529,-1311.31,0.000243,7]
[367179167,1750694366607,-151.0,0.00024421,7]
[367179168,1750694366677,-151.0,0.00024421,7]
[367179169,1750694366744,-151.0,0.00024421,7]
[367179170,1750694366818,-151.0,0.0002465,7]
[367179171,1750694366882,-151.0,0.0002465,7]
[367179172,1750694366944,-151.0,0.0002465,7]
[367179173,1750694367006,-151.0,0.0002465,7]